fUSD/lending_fUSD_20260520
["ID","MTS","AMOUNT","RATE_DAILY","PERIOD"]
[422707329,1779282633000,-1394.42024291,9.358e-05,2]
[422707328,1779282633000,-1394.42024291,9.358e-05,2]
[422707326,1779282633000,-1394.42024291,9.358e-05,2]
[422707322,1779282633000,-192.85393359,9.358e-05,2]
[422707321,1779282633000,-1368.32293403,9.358e-05,2]
[422707317,1779282633000,-1368.32293403,9.358e-05,2]
[422707320,1779282633000,-1368.32293403,9.358e-05,2]
[422707315,1779282633000,-1368.32293403,9.358e-05,2]
[422707319,1779282633000,-1368.32293403,9.358e-05,2]
[422707330,1779282633000,-1394.42024291,9.358e-05,2]
[422707335,1779282633000,-308.46731456,9.358e-05,2]
[422707350,1779282638000,-524.70855744,9.359e-05,2]
[422707348,1779282638000,-18094.06120652,9.359e-05,2]
[422707349,1779282638000,-2524.30426327,9.359e-05,2]
[422707352,1779282638000,-2035.4737168,9.359e-05,2]
[422707354,1779282638000,-14707.67259765,9.359e-05,2]
[422707353,1779282638000,-303.89308898,9.359e-05,2]
[422707351,1779282638000,-107213.73504942,9.359e-05,2]
[422707382,1779282641000,-320.04378153,9.359e-05,2]
[422707379,1779282641000,-1143.80000001,9.359e-05,2]
[422707381,1779282641000,-1362.87164236,9.359e-05,2]
[422707380,1779282641000,-400.96,9.359e-05,2]
[422707397,1779282643000,-1995.80587947,9.359e-05,2]
[422707396,1779282643000,-45968.18212552,9.359e-05,2]
[422707410,1779282644000,-4266.43680034,0.00011099,2]
[422707414,1779282644000,-5067.32108283,0.00011139,2]
[422707412,1779282644000,-5067.32108283,0.00011099,2]
[422707416,1779282644000,-150.99,0.00011139,2]
[422707418,1779282644000,-4266.43680034,0.00011139,2]
[422707415,1779282644000,-159.18,0.00011139,2]
[422707424,1779282644000,-157.846,0.00012014,2]
[422707413,1779282644000,-5067.32108283,0.00011099,2]
[422707419,1779282644000,-150.0,0.00011342,2]
[422707425,1779282644000,-150.0,0.00012014,2]
[422707411,1779282644000,-5067.32108285,0.00011099,2]
[422707407,1779282644000,-500.0,0.00010958,2]
[422707409,1779282644000,-4266.43680034,0.00011099,2]
[422707406,1779282644000,-500.0,0.00010958,2]
[422707426,1779282644000,-3545.0,0.00012014,2]
[422707405,1779282644000,-858.4476004,0.000109,2]
[422707403,1779282644000,-858.44760041,0.000109,2]
[422707404,1779282644000,-858.4476004,0.000109,2]
[422707401,1779282644000,-18107.0,0.00010739,2]
[422707402,1779282644000,-6106.0,0.00010761,2]
[422707400,1779282644000,-371.51342123,0.00010275,2]
[422707399,1779282644000,-1628.48657877,0.00010275,2]
[422707398,1779282644000,-215.20247212,9.501e-05,2]
[422707408,1779282644000,-4266.43680043,0.00011099,2]
[422707420,1779282644000,-858.4476004,0.00011677,2]
[422707417,1779282644000,-9999.99,0.00011139,2]
[422707421,1779282644000,-5067.32108283,0.00011766,2]
[422707447,1779282644000,-500.0,0.00012227,2]
[422707444,1779282644000,-500.0,0.00012227,2]
[422707448,1779282644000,-300.0,0.00012227,2]
[422707422,1779282644000,-4266.43680034,0.00011766,2]
[422707446,1779282644000,-500.0,0.00012227,2]
[422707441,1779282644000,-481.62760951,0.00012227,2]
[422707442,1779282644000,-500.0,0.00012227,2]
[422707443,1779282644000,-500.0,0.00012227,2]
[422707440,1779282644000,-528.82237649,0.00012227,2]
[422707438,1779282644000,-500.0,0.00012227,2]
[422707449,1779282644000,-81679.77707874,0.00012228,2]
[422707439,1779282644000,-500.0,0.00012227,2]
[422707445,1779282644000,-500.0,0.00012227,2]
[422707432,1779282644000,-500.0,0.00012227,2]
[422707437,1779282644000,-500.0,0.00012227,2]
[422707433,1779282644000,-500.0,0.00012227,2]
[422707434,1779282644000,-532.95878183,0.00012227,2]
[422707431,1779282644000,-2000.0,0.00012132,2]
[422707435,1779282644000,-212.160353,0.00012227,2]
[422707430,1779282644000,-548.46,0.00012087,2]
[422707429,1779282644000,-1271.0,0.00012014,2]
[422707427,1779282644000,-1354.0,0.00012014,2]
[422707428,1779282644000,-927.0,0.00012014,2]
[422707423,1779282644000,-150.0,0.00012014,2]
[422707436,1779282644000,-500.0,0.00012227,2]
[422707464,1779282647000,-2035.29474607,9.258e-05,2]
[422707465,1779282647000,-3222.8993,9.258e-05,2]
[422707467,1779282647000,-71970.85054708,9.258e-05,2]
[422707468,1779282647000,-5422.00275225,9.258e-05,2]
[422707466,1779282647000,-9929.97880768,9.258e-05,2]
[422707472,1779282816000,5995.12,0.00028767,120]
[422707473,1779282836000,152.0,8.867e-05,7]
[422707474,1779283135000,152.0,8.868e-05,7]
[422707475,1779283207000,2952.30304316,0.00028,120]
[422707480,1779283644000,2200.0,8.8e-05,3]
[422707481,1779283647000,4500.0,8.9e-05,3]
[422707482,1779283649000,6800.0,9e-05,3]
[422707483,1779283740000,1000.0,0.00028766,120]
[422707495,1779283831000,-651.4767907,9.058e-05,2]
[422707493,1779283831000,-150.0,9.057e-05,2]
[422707492,1779283831000,-233.0,9.057e-05,2]
[422707494,1779283831000,-376.06959888,9.058e-05,2]
[422707497,1779283831000,-22570.34819008,9.058e-05,2]
[422707499,1779283831000,-443.39958113,9.058e-05,2]
[422707500,1779283831000,-1498.98409568,9.058e-05,2]
[422707501,1779283831000,-1108.61757386,9.058e-05,2]
[422707498,1779283831000,-40012.36361792,9.058e-05,2]
[422707496,1779283831000,-8737.1957202,9.058e-05,2]
[422707521,1779283837000,-323.03465022,9.058e-05,2]
[422707520,1779283837000,-1003.3322536,9.058e-05,2]
[422707523,1779283838000,-3374.24446509,9.058e-05,2]
[422707524,1779283838000,-649.99457435,9.058e-05,2]
[422707522,1779283838000,-508.40358673,9.058e-05,2]
[422707588,1779283840000,-6746.22981931,9.058e-05,2]
[422707587,1779283840000,-890.83008177,9.058e-05,2]
[422707585,1779283840000,-2455.64663095,9.058e-05,2]
[422707586,1779283840000,-2206.12181778,9.058e-05,2]
[422707584,1779283840000,-12955.40241671,9.058e-05,2]
[422707589,1779283840000,-4803.55679394,9.058e-05,2]
[422707866,1779283846000,-4905.7414,9.058e-05,2]
[422707865,1779283846000,-6578.1,9.058e-05,2]
[422707945,1779284122000,1000.0,0.00028767,120]
[422707946,1779284441000,152.0,8.868e-05,7]
[422707948,1779284728000,154.68,5.136e-05,2]
[422707952,1779284834000,1600.0,8.9e-05,3]
[422707953,1779284836000,3200.0,9e-05,3]
[422707954,1779284839000,4800.0,0.0001,3]
[422707955,1779284940000,1000.0,0.00028766,120]
[422707967,1779285033000,-292.35934521,8.857e-05,2]
[422707961,1779285033000,-154.68,7.11e-05,2]
[422707968,1779285033000,-1200.0,8.857e-05,2]
[422707964,1779285033000,-151.0,8.855e-05,2]
[422707969,1779285033000,-156.47652131,8.858e-05,2]
[422707962,1779285033000,-154.68,8.096e-05,2]
[422707959,1779285033000,-150.0,6.613e-05,2]
[422707960,1779285033000,-250.0,6.735e-05,2]
[422707958,1779285033000,-150.0,6.613e-05,2]
[422707957,1779285033000,-154.68,6.123e-05,2]
[422707970,1779285033000,-457.24022354,8.858e-05,2]
[422707965,1779285033000,-150.0,8.857e-05,2]
[422707978,1779285033000,-6527.24785314,8.858e-05,2]
[422707971,1779285033000,-407.0,8.858e-05,2]
[422707963,1779285033000,-234.95292507,8.828e-05,2]
[422707973,1779285033000,-38622.0,8.858e-05,2]
[422707975,1779285033000,-614.38785408,8.858e-05,2]
[422707972,1779285033000,-342.86699056,8.858e-05,2]
[422707974,1779285033000,-671.44228671,8.858e-05,2]
[422707976,1779285033000,-258.87161287,8.858e-05,2]
[422707977,1779285033000,-2018.29226128,8.858e-05,2]
[422707979,1779285033000,-101191.82713112,8.858e-05,2]
[422707980,1779285033000,-63206.51929669,8.858e-05,2]
[422707981,1779285033000,-90094.90662238,8.858e-05,2]
[422707982,1779285033000,-1254.41808677,8.858e-05,2]
[422707966,1779285033000,-7.64065479,8.857e-05,2]
[422708021,1779285037000,-25548.38353755,8.858e-05,2]
[422708022,1779285038000,-287.32453981,8.858e-05,2]
[422708023,1779285038000,-1939.06989098,8.858e-05,2]
[422708272,1779285040000,-1547.70208197,8.858e-05,2]
[422708270,1779285040000,-631.82476233,8.858e-05,2]
[422708271,1779285040000,-6478.86472451,8.858e-05,2]
[422708269,1779285040000,-1363.19721925,8.858e-05,2]
[422708263,1779285040000,-7708.7,8.858e-05,2]
[422708265,1779285040000,-400.765,8.858e-05,2]
[422708285,1779285043000,-3134.75083467,8.858e-05,2]
[422708284,1779285043000,-10179.87384544,8.858e-05,2]
[422708283,1779285043000,-539.273,8.858e-05,2]
[422708297,1779285046000,-460.205791,8.858e-05,2]
[422708299,1779285046000,-509.37477799,8.858e-05,2]
[422708298,1779285046000,-3833.761,8.858e-05,2]
[422708419,1779285350000,564.0,0.000287,120]
[422708420,1779285357000,152.0,8.868e-05,7]
[422708421,1779285439000,301.67980665,0.00028767,120]
[422708423,1779285493000,154.68,4.259e-05,2]
[422708446,1779286035000,1100.0,8.9e-05,3]
[422708447,1779286038000,2200.0,9e-05,3]
[422708448,1779286079000,6939.0,0.00028767,120]
[422708449,1779286140000,1000.0,0.00028766,120]
[422708450,1779286167000,330.18,0.00028767,120]
[422708452,1779286231000,-150.0,7.857e-05,2]
[422708454,1779286231000,-37.34232647,8.1e-05,2]
[422708453,1779286231000,-166.66,7.983e-05,2]
[422708515,1779286232000,-364.65,8.58e-05,2]
[422708495,1779286232000,-4114.03,8.565e-05,2]
[422708499,1779286232000,-16017.76,8.565e-05,2]
[422708505,1779286232000,-9999.99,8.579e-05,2]
[422708497,1779286232000,-166.16,8.565e-05,2]
[422708500,1779286232000,-198.0,8.579e-05,2]
[422708503,1779286232000,-1021.0,8.579e-05,2]
[422708506,1779286232000,-16186.53,8.579e-05,2]
[422708510,1779286232000,-2772.18,8.579e-05,2]
[422708508,1779286232000,-9999.99,8.579e-05,2]
[422708513,1779286232000,-3852.78420496,8.58e-05,2]
[422708523,1779286232000,-200.0,8.643e-05,2]
[422708519,1779286232000,-5923.0,8.582e-05,2]
[422708530,1779286232000,-304567.617,8.658e-05,2]
[422708517,1779286232000,-24999.99,8.58e-05,2]
[422708527,1779286232000,-179.0,8.65e-05,2]
[422708490,1779286232000,-999.99,8.558e-05,2]
[422708525,1779286232000,-879.0,8.65e-05,2]
[422708529,1779286232000,-150.0,8.657e-05,2]
[422708537,1779286232000,-201.44549433,8.714e-05,2]
[422708535,1779286232000,-484.4227,8.668e-05,2]
[422708538,1779286232000,-1780.556,8.757e-05,2]
[422708521,1779286232000,-10337.0,8.63e-05,2]
[422708493,1779286232000,-2044.0,8.565e-05,2]
[422708469,1779286232000,-172.81565671,8.557e-05,2]
[422708475,1779286232000,-457.10745872,8.557e-05,2]
[422708457,1779286232000,-314.65415041,8.187e-05,2]
[422708456,1779286232000,-159.46584959,8.187e-05,2]
[422708455,1779286232000,-112.65767353,8.1e-05,2]
[422708458,1779286232000,-78.99932559,8.219e-05,2]
[422708459,1779286232000,-101.08067441,8.219e-05,2]
[422708460,1779286232000,-2000.0,8.219e-05,2]
[422708463,1779286232000,-174.45,8.224e-05,2]
[422708462,1779286232000,-208.63953863,8.219e-05,2]
[422708464,1779286232000,-160.0,8.291e-05,2]
[422708461,1779286232000,-206.32,8.219e-05,2]
[422708489,1779286232000,-4999.99,8.558e-05,2]
[422708465,1779286232000,-154.68,8.351e-05,2]
[422708466,1779286232000,-608.0,8.516e-05,2]
[422708472,1779286232000,-500.0,8.557e-05,2]
[422708479,1779286232000,-300.0,8.557e-05,2]
[422708481,1779286232000,-300.0,8.557e-05,2]
[422708470,1779286232000,-447.46038773,8.557e-05,2]
[422708484,1779286232000,-19999.99,8.558e-05,2]
[422708540,1779286232000,-154.981,8.757e-05,2]
[422708477,1779286232000,-500.0,8.557e-05,2]
[422708483,1779286232000,-1500000.0,8.558e-05,2]
[422708487,1779286232000,-150.99,8.558e-05,2]
[422708467,1779286232000,-156.0,8.516e-05,2]
[422708553,1779286232000,-3094.08606169,8.858e-05,2]
[422708533,1779286232000,-99142.1824,8.658e-05,2]
[422708555,1779286232000,-7643.48399444,8.858e-05,2]
[422708595,1779286232000,-570.27536859,8.862e-05,2]
[422708586,1779286232000,-570.27536859,8.862e-05,2]
[422708589,1779286232000,-570.27536859,8.862e-05,2]
[422708596,1779286232000,-570.27536859,8.862e-05,2]
[422708585,1779286232000,-570.27536859,8.862e-05,2]
[422708591,1779286232000,-570.27536859,8.862e-05,2]
[422708593,1779286232000,-570.27536859,8.862e-05,2]
[422708590,1779286232000,-570.27536859,8.862e-05,2]
[422708599,1779286232000,-570.27536859,8.862e-05,2]
[422708600,1779286232000,-570.27536859,8.862e-05,2]
[422708588,1779286232000,-570.27536859,8.862e-05,2]
[422708597,1779286232000,-570.27536859,8.862e-05,2]
[422708602,1779286232000,-570.27536859,8.862e-05,2]
[422708598,1779286232000,-570.27536859,8.862e-05,2]
[422708601,1779286232000,-570.27536859,8.862e-05,2]
[422708605,1779286232000,-570.27536859,8.862e-05,2]
[422708604,1779286232000,-570.27536859,8.862e-05,2]
[422708607,1779286232000,-570.27536859,8.862e-05,2]
[422708606,1779286232000,-570.27536859,8.862e-05,2]
[422708608,1779286232000,-570.27536859,8.862e-05,2]
[422708609,1779286232000,-570.27536859,8.862e-05,2]
[422708547,1779286232000,-177.57196693,8.829e-05,2]
[422708603,1779286232000,-570.27536859,8.862e-05,2]
[422708594,1779286232000,-570.27536859,8.862e-05,2]
[422708587,1779286232000,-570.27536859,8.862e-05,2]
[422708584,1779286232000,-570.27536859,8.862e-05,2]
[422708542,1779286232000,-33195.548,8.764e-05,2]
[422708549,1779286232000,-151.0,8.855e-05,2]
[422708561,1779286232000,-420.37723676,8.862e-05,2]
[422708557,1779286232000,-500.0,8.862e-05,2]
[422708592,1779286232000,-570.27536859,8.862e-05,2]
[422708559,1779286232000,-500.0,8.862e-05,2]
[422708551,1779286232000,-162.07,8.858e-05,2]
[422708545,1779286232000,-2500.0,8.764e-05,2]
[422708563,1779286232000,-500.0,8.862e-05,2]
[422708565,1779286232000,-500.0,8.862e-05,2]
[422708567,1779286232000,-500.0,8.862e-05,2]
[422708579,1779286232000,-570.27536859,8.862e-05,2]
[422708610,1779286232000,-570.27536859,8.862e-05,2]
[422708572,1779286232000,-570.27536859,8.862e-05,2]
[422708569,1779286232000,-570.27536859,8.862e-05,2]
[422708578,1779286232000,-570.27536859,8.862e-05,2]
[422708574,1779286232000,-570.27536859,8.862e-05,2]
[422708581,1779286232000,-570.27536859,8.862e-05,2]
[422708582,1779286232000,-570.27536859,8.862e-05,2]
[422708583,1779286232000,-570.27536859,8.862e-05,2]
[422708576,1779286232000,-570.27536859,8.862e-05,2]
[422708580,1779286232000,-570.27536859,8.862e-05,2]
[422708575,1779286232000,-570.27536859,8.862e-05,2]
[422708577,1779286232000,-570.27536859,8.862e-05,2]
[422708618,1779286233000,-570.27536858,8.862e-05,2]
[422708624,1779286233000,-570.27536858,8.862e-05,2]
[422708619,1779286233000,-570.27536858,8.862e-05,2]
[422708620,1779286233000,-570.27536858,8.862e-05,2]
[422708616,1779286233000,-570.27536858,8.862e-05,2]
[422708614,1779286233000,-570.27536858,8.862e-05,2]
[422708621,1779286233000,-570.27536858,8.862e-05,2]
[422708617,1779286233000,-570.27536858,8.862e-05,2]
[422708612,1779286233000,-570.27536859,8.862e-05,2]
[422708613,1779286233000,-570.27536859,8.862e-05,2]
[422708623,1779286233000,-570.27536858,8.862e-05,2]
[422708622,1779286233000,-570.27536858,8.862e-05,2]
[422708611,1779286233000,-570.27536859,8.862e-05,2]
[422708626,1779286233000,-570.27536858,8.862e-05,2]
[422708615,1779286233000,-570.27536858,8.862e-05,2]
[422708628,1779286233000,-570.27536858,8.862e-05,2]
[422708627,1779286233000,-570.27536858,8.862e-05,2]
[422708625,1779286233000,-570.27536858,8.862e-05,2]
[422708629,1779286233000,-570.27536858,8.862e-05,2]
[422708644,1779286233000,-900.0,8.873e-05,2]
[422708639,1779286233000,-8617.16525316,8.873e-05,2]
[422708638,1779286233000,-196463.57679079,8.873e-05,2]
[422708641,1779286233000,-11338.2925578,8.873e-05,2]
[422708642,1779286233000,-96473.90512626,8.873e-05,2]
[422708643,1779286233000,-107227.68168881,8.873e-05,2]
[422708640,1779286233000,-11030.67300625,8.873e-05,2]
[422708635,1779286233000,-9999.99,8.864e-05,2]
[422708634,1779286233000,-570.27536858,8.862e-05,2]
[422708636,1779286233000,-604.43,8.864e-05,2]
[422708633,1779286233000,-570.27536858,8.862e-05,2]
[422708630,1779286233000,-570.27536858,8.862e-05,2]
[422708632,1779286233000,-570.27536858,8.862e-05,2]
[422708631,1779286233000,-570.27536858,8.862e-05,2]
[422708637,1779286233000,-500.0,8.872e-05,2]
[422708645,1779286234000,-2000.0,8.873e-05,2]
[422708647,1779286234000,-6544.65756157,8.873e-05,2]
[422708646,1779286234000,-471.84604647,8.873e-05,2]
[422708652,1779286238000,-500.0,8.557e-05,2]
[422708649,1779286238000,-500.0,8.557e-05,2]
[422708648,1779286238000,-500.0,8.557e-05,2]
[422708650,1779286238000,-500.0,8.557e-05,2]
[422708651,1779286238000,-500.0,8.557e-05,2]
[422708653,1779286238000,-638.68279368,8.557e-05,2]
[422708655,1779286238000,-500.0,8.557e-05,2]
[422708659,1779286238000,-86801.57476456,8.873e-05,2]
[422708660,1779286238000,-11125.88655349,8.873e-05,2]
[422708658,1779286238000,-500.0,8.557e-05,2]
[422708656,1779286238000,-500.0,8.557e-05,2]
[422708657,1779286238000,-435.64979146,8.557e-05,2]
[422708661,1779286238000,-288.399994,8.873e-05,2]
[422708662,1779286238000,-2245.908,8.873e-05,2]
[422708654,1779286238000,-500.0,8.557e-05,2]
[422708719,1779286240000,-180.44403208,0.0001,2]
[422708729,1779286240000,-760.43795285,0.000109,2]
[422708721,1779286240000,-490.61210206,0.00010237,2]
[422708718,1779286240000,-465.57044318,0.0001,2]
[422708720,1779286240000,-203.62,0.00010027,2]
[422708723,1779286240000,-160.4,0.00010319,2]
[422708724,1779286240000,-871.86043898,0.00010899,2]
[422708722,1779286240000,-2000.0,0.00010274,2]
[422708727,1779286240000,-290.50182685,0.000109,2]
[422708730,1779286240000,-760.43795284,0.000109,2]
[422708728,1779286240000,-3300.0,0.000109,3]
[422708725,1779286240000,-1000.0,0.000109,2]
[422708731,1779286240000,-760.43795284,0.000109,2]
[422708733,1779286240000,-200.0,0.00010959,2]
[422708732,1779286240000,-7079.7342435,0.00010912,2]
[422708726,1779286240000,-1035.60845205,0.000109,2]
[422708709,1779286240000,-166.66,9.3e-05,2]
[422708698,1779286240000,-151.0,8.658e-05,2]
[422708715,1779286240000,-500.0,9.694e-05,2]
[422708734,1779286240000,-150.0,0.00010959,2]
[422708700,1779286240000,-2698.93304004,8.873e-05,2]
[422708704,1779286240000,-2266.96892769,8.873e-05,2]
[422708701,1779286240000,-382101.9415479,8.873e-05,2]
[422708703,1779286240000,-7079.7342435,8.873e-05,2]
[422708702,1779286240000,-138426.5254482,8.873e-05,2]
[422708705,1779286240000,-1298.25,9.116e-05,2]
[422708711,1779286240000,-500.0,9.42e-05,2]
[422708707,1779286240000,-166.68,9.24e-05,2]
[422708713,1779286240000,-30977.2355008,9.606e-05,2]
[422708708,1779286240000,-2000.0,9.247e-05,2]
[422708712,1779286240000,-150.0,9.522e-05,2]
[422708710,1779286240000,-287.0,9.412e-05,2]
[422708717,1779286240000,-151.0,0.0001,2]
[422708716,1779286240000,-215.20247212,9.718e-05,2]
[422708714,1779286240000,-17287.023152,9.606e-05,2]
[422708706,1779286240000,-500.0,9.146e-05,2]
[422708742,1779286240000,-4218.79269693,0.00011488,2]
[422708699,1779286240000,-151.0,8.658e-05,2]
[422708735,1779286240000,-203.62,0.0001103,2]
[422708759,1779286240000,-760.43795284,0.00012182,2]
[422708768,1779286240000,-500.0,0.00012329,2]
[422708763,1779286240000,-1337.86,0.00012329,2]
[422708756,1779286240000,-2266.96892767,0.00011837,2]
[422708767,1779286240000,-500.0,0.00012329,2]
[422708758,1779286240000,-4218.79269693,0.0001217,2]
[422708765,1779286240000,-500.0,0.00012329,2]
[422708762,1779286240000,-2000.0,0.00012329,2]
[422708761,1779286240000,-522.0,0.00012279,2]
[422708764,1779286240000,-500.0,0.00012329,2]
[422708769,1779286240000,-500.0,0.00012329,2]
[422708773,1779286240000,-500.0,0.00012329,2]
[422708774,1779286240000,-500.0,0.00012329,2]
[422708772,1779286240000,-500.0,0.00012329,2]
[422708771,1779286240000,-500.0,0.00012329,2]
[422708736,1779286240000,-4218.79269701,0.00011099,2]
[422708766,1779286240000,-500.0,0.00012329,2]
[422708760,1779286240000,-159.0,0.000122,2]
[422708770,1779286240000,-500.0,0.00012329,2]
[422708755,1779286240000,-465.57044318,0.00011837,2]
[422708757,1779286240000,-2100.0,0.00012,2]
[422708737,1779286240000,-4218.79269693,0.00011099,2]
[422708738,1779286240000,-4218.79269693,0.00011099,2]
[422708739,1779286240000,-4218.79269693,0.00011099,2]
[422708740,1779286240000,-760.43795284,0.00011276,2]
[422708743,1779286240000,-166.66,0.00011682,2]
[422708744,1779286240000,-150.0,0.00011761,2]
[422708751,1779286240000,-931.052,0.00011761,2]
[422708741,1779286240000,-2000.0,0.00011301,2]
[422708752,1779286240000,-310.0,0.00011828,5]
[422708750,1779286240000,-6058.0,0.00011761,2]
[422708746,1779286240000,-625.0,0.00011761,2]
[422708749,1779286240000,-1224.0,0.00011761,2]
[422708745,1779286240000,-150.0,0.00011761,2]
[422708754,1779286240000,-304.0,0.00011828,5]
[422708753,1779286240000,-272.0,0.00011828,5]
[422708748,1779286240000,-3545.0,0.00011761,2]
[422708747,1779286240000,-1354.0,0.00011761,2]
[422708807,1779286241000,-235.128131,0.00013353,2]
[422708812,1779286241000,-2314.0,0.000134,2]
[422708811,1779286241000,-202.531556,0.00013353,2]
[422708806,1779286241000,-212.633177,0.00013151,2]
[422708810,1779286241000,-185.5234,0.00013353,2]
[422708816,1779286241000,-180.319863,0.00013486,2]
[422708808,1779286241000,-182.402429,0.00013353,2]
[422708817,1779286241000,-150.0,0.00013488,2]
[422708814,1779286241000,-308.280916,0.00013419,2]
[422708813,1779286241000,-239.151257,0.00013419,2]
[422708815,1779286241000,-180.34112,0.00013486,2]
[422708809,1779286241000,-261.075833,0.00013353,2]
[422708818,1779286241000,-150.0,0.00013488,2]
[422708830,1779286241000,-243.96433052,0.00013624,2]
[422708821,1779286241000,-150.0,0.00013488,2]
[422708826,1779286241000,-166.66,0.0001361,2]
[422708822,1779286241000,-150.0,0.00013488,2]
[422708824,1779286241000,-10356.22507215,0.00013538,2]
[422708827,1779286241000,-300.0,0.00013624,2]
[422708825,1779286241000,-150.0,0.00013588,2]
[422708823,1779286241000,-4218.79269693,0.00013535,2]
[422708819,1779286241000,-150.0,0.00013488,2]
[422708828,1779286241000,-300.0,0.00013624,2]
[422708832,1779286241000,-2529.9150342,0.00013625,2]
[422708831,1779286241000,-48220.97465,0.00013625,2]
[422708833,1779286241000,-155941.3701741,0.00013625,2]
[422708799,1779286241000,-500.0,0.00012854,2]
[422708820,1779286241000,-150.0,0.00013488,2]
[422708800,1779286241000,-10356.22507215,0.00012858,2]
[422708793,1779286241000,-315.0,0.000125,2]
[422708802,1779286241000,-7079.7342435,0.00012951,2]
[422708775,1779286241000,-500.0,0.00012329,2]
[422708780,1779286241000,-500.0,0.00012329,2]
[422708776,1779286241000,-500.0,0.00012329,2]
[422708777,1779286241000,-500.0,0.00012329,2]
[422708778,1779286241000,-500.0,0.00012329,2]
[422708779,1779286241000,-500.0,0.00012329,2]
[422708782,1779286241000,-500.0,0.00012329,2]
[422708792,1779286241000,-1000.0,0.000125,2]
[422708781,1779286241000,-500.0,0.00012329,2]
[422708783,1779286241000,-500.0,0.00012329,2]
[422708842,1779286241000,-500.0,0.00013698,2]
[422708784,1779286241000,-500.0,0.00012329,2]
[422708785,1779286241000,-500.0,0.00012329,2]
[422708787,1779286241000,-500.0,0.00012329,2]
[422708791,1779286241000,-990.0,0.00012329,2]
[422708788,1779286241000,-500.0,0.00012329,2]
[422708786,1779286241000,-500.0,0.00012329,2]
[422708789,1779286241000,-500.0,0.00012329,2]
[422708790,1779286241000,-500.0,0.00012329,2]
[422708794,1779286241000,-308.0,0.000125,2]
[422708803,1779286241000,-760.43795284,0.00013088,2]
[422708796,1779286241000,-4218.79269693,0.00012853,2]
[422708805,1779286241000,-151.0,0.00013151,2]
[422708804,1779286241000,-876.71,0.000131,2]
[422708795,1779286241000,-166.66,0.00012646,2]
[422708797,1779286241000,-500.0,0.00012854,2]
[422708798,1779286241000,-1200.0,0.00012854,2]
[422708801,1779286241000,-6328.57,0.00012893,2]
[422708843,1779286241000,-395.3998277,0.00013698,2]
[422708829,1779286241000,-300.0,0.00013624,2]
[422708836,1779286241000,-150.0,0.00013687,2]
[422708870,1779286241000,-500.0,0.00013698,2]
[422708872,1779286241000,-500.0,0.00013698,2]
[422708869,1779286241000,-500.0,0.00013698,2]
[422708878,1779286241000,-500.0,0.00013698,2]
[422708879,1779286241000,-500.0,0.00013698,2]
[422708877,1779286241000,-500.0,0.00013698,2]
[422708874,1779286241000,-500.0,0.00013698,2]
[422708873,1779286241000,-500.0,0.00013698,2]
[422708875,1779286241000,-500.0,0.00013698,2]
[422708876,1779286241000,-500.0,0.00013698,2]
[422708880,1779286241000,-500.0,0.00013698,2]
[422708892,1779286241000,-500.0,0.00013698,2]
[422708882,1779286241000,-500.0,0.00013698,2]
[422708871,1779286241000,-500.0,0.00013698,2]
[422708893,1779286241000,-500.0,0.00013698,2]
[422708885,1779286241000,-500.0,0.00013698,2]
[422708883,1779286241000,-500.0,0.00013698,2]
[422708886,1779286241000,-316.83110774,0.00013698,2]
[422708887,1779286241000,-500.0,0.00013698,2]
[422708888,1779286241000,-500.0,0.00013698,2]
[422708889,1779286241000,-500.0,0.00013698,2]
[422708890,1779286241000,-500.0,0.00013698,2]
[422708891,1779286241000,-500.0,0.00013698,2]
[422708894,1779286241000,-500.0,0.00013698,2]
[422708896,1779286241000,-500.0,0.00013698,2]
[422708897,1779286241000,-500.0,0.00013698,2]
[422708834,1779286241000,-30887.132792,0.00013625,2]
[422708895,1779286241000,-500.0,0.00013698,2]
[422708884,1779286241000,-445.93432849,0.00013698,2]
[422708868,1779286241000,-500.0,0.00013698,2]
[422708881,1779286241000,-500.0,0.00013698,2]
[422708863,1779286241000,-500.0,0.00013698,2]
[422708838,1779286241000,-500.0,0.00013698,2]
[422708862,1779286241000,-500.0,0.00013698,2]
[422708840,1779286241000,-500.0,0.00013698,2]